fUSD/lending_fUSD_20240319
["ID","MTS","AMOUNT","RATE_DAILY","PERIOD"]
[319529930,1710827499327,-500.0,0.00055616,120]
[319529931,1710827499337,-1288.74,0.00055616,120]
[319529932,1710827499346,-500.0,0.00055616,120]
[319529933,1710827499356,-500.0,0.00055616,120]
[319529934,1710827499366,-500.0,0.00055616,120]
[319529935,1710827499376,-1779.68,0.00055616,120]
[319529936,1710827499386,-500.0,0.00055616,120]
[319529937,1710827499408,-1753.04,0.00055616,120]
[319529938,1710827499418,-218.43182737,0.00055616,120]
[319529939,1710827499427,-500.0,0.00055616,120]
[319529940,1710827499437,-500.0,0.00055616,120]
[319529941,1710827499447,-500.0,0.00055616,120]
[319529942,1710827499456,-500.0,0.00055616,120]
[319529943,1710827499466,-500.0,0.00055616,120]
[319529944,1710827499475,-509.93,0.00055616,120]
[319529945,1710827499488,-2273.03,0.00055616,120]
[319529946,1710827499498,-1250.13,0.00055616,120]
[319529947,1710827499508,-650.12,0.00055616,120]
[319529948,1710827499517,-500.0,0.00055616,120]
[319529949,1710827499527,-1725.58,0.00055616,120]
[319529950,1710827499537,-500.0,0.00055616,120]
[319529951,1710827499547,-500.0,0.00055616,120]
[319529952,1710827499557,-500.98443345,0.00055616,120]
[319529953,1710827499567,-500.0,0.00055616,120]
[319529954,1710827499577,-593.53,0.00055616,120]
[319529955,1710827499587,-500.0,0.00055616,120]
[319529956,1710827499596,-500.0,0.00055616,120]
[319529957,1710827499606,-1663.43,0.00055616,120]
[319529958,1710827499616,-500.0,0.00055616,120]
[319529959,1710827499625,-500.0,0.00055616,120]
[319529960,1710827499635,-500.0,0.00055616,120]
[319529961,1710827499644,-500.0,0.00055616,120]
[319529962,1710827499654,-500.0,0.00055616,120]
[319529963,1710827499663,-515.58,0.00055616,120]
[319529964,1710827499673,-500.0,0.00055616,120]
[319529965,1710827499683,-500.0,0.00055616,120]
[319529966,1710827499693,-578.4,0.00055616,120]
[319529967,1710827499703,-500.0,0.00055616,120]
[319529968,1710827499712,-580.72,0.00055616,120]
[319529969,1710827499722,-500.0,0.00055616,120]
[319529970,1710827499732,-500.0,0.00055616,120]
[319529971,1710827499742,-1961.16,0.00055616,120]
[319529972,1710827499753,-500.0,0.00055616,120]
[319529973,1710827499763,-500.0,0.00055616,120]
[319529974,1710827499774,-500.0,0.00055616,120]
[319529975,1710827499784,-500.0,0.00055616,120]
[319529976,1710827499795,-507.16140376,0.00055616,120]
[319529977,1710827499806,-633.93,0.00055616,120]
[319529978,1710827499818,-500.0,0.00055616,120]
[319529979,1710827499828,-500.0,0.00055616,120]
[319529980,1710827499838,-500.0,0.00055616,120]
[319529981,1710827499848,-500.0,0.00055616,120]
[319529982,1710827499859,-500.0,0.00055616,120]
[319529983,1710827499869,-171.32474252,0.00055616,120]
[319529984,1710827499880,-1389.97,0.00055616,120]
[319529985,1710827499891,-511.5357487,0.00055616,120]
[319529986,1710827499902,-500.0,0.00055616,120]
[319529987,1710827499912,-1624.64,0.00055616,120]
[319529988,1710827499922,-500.0,0.00055616,120]
[319529989,1710827499932,-500.0,0.00055616,120]
[319529990,1710827499942,-500.0,0.00055616,120]
[319529991,1710827499952,-500.0,0.00055616,120]
[319529992,1710827499962,-500.0,0.00055616,120]
[319529993,1710827499972,-500.0,0.00055616,120]
[319529994,1710827499983,-650.76,0.00055616,120]
[319529995,1710827499993,-500.0,0.00055616,120]
[319529996,1710827500003,-256.95997276,0.00055616,120]
[319529997,1710827500013,-500.0,0.00055616,120]
[319529998,1710827500022,-500.0,0.00055616,120]
[319529999,1710827500032,-500.0,0.00055616,120]
[319530000,1710827500042,-500.0,0.00055616,120]
[319530001,1710827500052,-500.0,0.00055616,120]
[319530002,1710827500062,-500.0,0.00055616,120]
[319530003,1710827500072,-500.0,0.00055616,120]
[319530004,1710827500082,-1101.66,0.00055616,120]
[319530005,1710827500093,-805.67,0.00055616,120]
[319530006,1710827500103,-500.0,0.00055616,120]
[319530007,1710827500113,-500.0,0.00055616,120]
[319530008,1710827500123,-500.0,0.00055616,120]
[319530009,1710827500133,-7025.4,0.00055616,120]
[319530010,1710827500144,-500.0,0.00055616,120]
[319530011,1710827500154,-500.0,0.00055616,120]
[319530012,1710827500165,-5000.0,0.00055616,120]
[319530013,1710827500176,-500.0,0.00055616,120]
[319530014,1710827500186,-500.0,0.00055616,120]
[319530015,1710827500197,-500.0,0.00055616,120]
[319530016,1710827500208,-500.0,0.00055616,120]
[319530017,1710827500219,-500.0,0.00055616,120]
[319530018,1710827500229,-777.69,0.00055616,120]
[319530019,1710827500241,-1841.28,0.00055616,120]
[319530020,1710827500251,-500.0,0.00055616,120]
[319530021,1710827500261,-500.0,0.00055616,120]
[319530022,1710827500271,-2559.72,0.00055616,120]
[319530023,1710827500281,-329.48,0.00055616,120]
[319530024,1710827500291,-531.0,0.00055616,120]
[319530025,1710827500300,-1186.03,0.00055616,120]
[319530026,1710827500310,-809.07,0.00055616,120]
[319530027,1710827500320,-500.0,0.00055616,120]
[319530028,1710827500330,-829.75,0.00055616,120]
[319530029,1710827500340,-500.0,0.00055616,120]
[319530030,1710827500350,-500.0,0.00055616,120]
[319530031,1710827500360,-500.0,0.00055616,120]
[319530032,1710827500370,-500.0,0.00055616,120]
[319530033,1710827500380,-500.0,0.00055616,120]
[319530034,1710827500390,-1669.33,0.00055616,120]
[319530035,1710827500429,-500.0,0.00055616,120]
[319530036,1710827500439,-500.0,0.00055616,120]
[319530037,1710827500450,-500.0,0.00055616,120]
[319530038,1710827500461,-500.0,0.00055616,120]
[319530039,1710827500471,-1063.99,0.00055616,120]
[319530040,1710827500484,-500.0,0.00055616,120]
[319530041,1710827500494,-500.0,0.00055616,120]
[319530042,1710827500504,-500.0,0.00055616,120]
[319530043,1710827500514,-500.0,0.00055616,120]
[319530044,1710827500524,-1101.81,0.00055616,120]
[319530045,1710827500534,-5517.49,0.00055616,120]
[319530046,1710827500543,-356.06957088,0.00055616,120]
[319530047,1710827500554,-829.57,0.00055616,2]
[319530048,1710827500564,-723.99,0.00055616,120]
[319530049,1710827500574,-508.84357101,0.00055616,120]
[319530050,1710827500585,-327.28936364,0.00055616,120]
[319530051,1710827500595,-500.0,0.00055616,120]
[319530052,1710827500605,-2000.0,0.00055616,120]
[319530053,1710827500615,-2640.45,0.00055616,120]
[319530054,1710827500626,-1422.87,0.00055616,120]
[319530055,1710827500839,-831.79,0.00055616,120]
[319530056,1710827500850,-500.0,0.00055616,120]
[319530057,1710827500860,-500.0,0.00055616,120]
[319530058,1710827500870,-1889.43,0.00055616,120]
[319530059,1710827500880,-501.44,0.00055616,120]
[319530060,1710827500890,-500.0,0.00055616,120]
[319530061,1710827500900,-1718.81,0.00055616,120]
[319530062,1710827500910,-500.0,0.00055616,120]
[319530063,1710827500920,-500.0,0.00055616,120]
[319530064,1710827500931,-500.0,0.00055616,120]
[319530065,1710827500941,-500.0,0.00055616,120]
[319530066,1710827500952,-500.0,0.00055616,120]
[319530067,1710827500962,-568.35,0.00055616,120]
[319530068,1710827500972,-500.0,0.00055616,120]
[319530069,1710827500985,-575.02,0.00055616,120]
[319530070,1710827500995,-17299.49,0.00055616,120]
[319530071,1710827501006,-500.0,0.00055616,120]
[319530072,1710827501017,-1873.11,0.00055616,120]
[319530073,1710827501027,-1866.96,0.00055616,120]
[319530074,1710827501038,-811.96,0.00055616,120]
[319530075,1710827501048,-500.0,0.00055616,120]
[319530076,1710827501058,-597.84162297,0.00055616,120]
[319530077,1710827501068,-500.0,0.00055616,120]
[319530078,1710827501078,-500.0,0.00055616,120]
[319530079,1710827501088,-500.0,0.00055616,120]
[319530080,1710827501098,-2357.17,0.00055616,120]
[319530081,1710827501107,-500.0,0.00055616,120]
[319530082,1710827501117,-500.0,0.00055616,120]
[319530083,1710827501128,-500.0,0.00055616,120]
[319530084,1710827501137,-500.0,0.00055616,120]
[319530085,1710827501147,-473.32974193,0.00055616,120]
[319530086,1710827501156,-1040.88,0.00055616,120]
[319530087,1710827501166,-2406.01,0.00055616,120]
[319530088,1710827501175,-500.0,0.00055616,120]
[319530089,1710827501185,-500.0,0.00055616,120]
[319530090,1710827501194,-500.0,0.00055616,120]
[319530091,1710827501203,-500.0,0.00055616,120]
[319530092,1710827501213,-500.0,0.00055616,120]
[319530093,1710827501222,-6514.2,0.00055616,120]
[319530094,1710827501235,-2625.47,0.00055616,120]
[319530095,1710827501244,-642.2,0.00055616,120]
[319530096,1710827501253,-1089.93,0.00055616,120]
[319530097,1710827501263,-660.71,0.00055616,120]
[319530098,1710827501273,-1126.8,0.00055616,120]
[319530099,1710827501283,-500.0,0.00055616,120]
[319530100,1710827501293,-500.0,0.00055616,120]
[319530101,1710827501303,-500.0,0.00055616,120]
[319530102,1710827501312,-500.0,0.00055616,120]
[319530103,1710827501322,-500.0,0.00055616,120]
[319530104,1710827501331,-500.0,0.00055616,120]
[319530105,1710827501341,-500.0,0.00055616,120]
[319530106,1710827501351,-500.0,0.00055616,120]
[319530107,1710827501361,-636.97,0.00055616,120]
[319530108,1710827501371,-500.0,0.00055616,120]
[319530109,1710827501381,-1070.72,0.00055616,120]
[319530110,1710827501391,-500.0,0.00055616,120]
[319530111,1710827501402,-1652.91,0.00055616,120]
[319530112,1710827501411,-14962.68,0.00055616,120]
[319530113,1710827501421,-2901.93,0.00055616,120]
[319530114,1710827501431,-1082.41,0.00055616,120]
[319530115,1710827501440,-500.0,0.00055616,120]
[319530116,1710827501450,-940.31,0.00055616,120]
[319530117,1710827501459,-1116.86,0.00055616,120]
[319530118,1710827501468,-500.0,0.00055616,120]
[319530119,1710827501478,-500.0,0.00055616,120]
[319530120,1710827501490,-500.0,0.00055616,120]
[319530121,1710827501499,-500.0,0.00055616,120]
[319530122,1710827501508,-500.0,0.00055616,120]
[319530123,1710827501519,-500.0,0.00055616,120]
[319530124,1710827501529,-542.35051379,0.00055616,120]
[319530125,1710827501538,-1733.23,0.00055616,120]
[319530126,1710827501548,-500.0,0.00055616,120]
[319530127,1710827501557,-42693.99,0.00055616,120]
[319530128,1710827501567,-630.47,0.00055616,120]
[319530129,1710827501576,-790.43,0.00055616,120]
[319530130,1710827501585,-500.0,0.00055616,120]
[319530131,1710827501595,-551.71,0.00055616,120]
[319530132,1710827501604,-1797.54,0.00055616,120]
[319530133,1710827501614,-2323.47,0.00055616,120]
[319530134,1710827501623,-500.0,0.00055616,120]
[319530135,1710827501632,-500.0,0.00055616,120]
[319530136,1710827501642,-500.0,0.00055616,120]
[319530137,1710827501652,-500.0,0.00055616,120]
[319530138,1710827501661,-1627.65,0.00055616,120]
[319530139,1710827501670,-2587.93,0.00055616,120]
[319530140,1710827501679,-500.0,0.00055616,120]
[319530141,1710827501689,-500.0,0.00055616,120]
[319530142,1710827501698,-500.0,0.00055616,120]
[319530143,1710827501708,-500.0,0.00055616,120]
[319530144,1710827501718,-500.0,0.00055616,120]
[319530145,1710827501728,-789.4,0.00055616,120]
[319530146,1710827501742,-3107.75,0.00055616,120]
[319530147,1710827501752,-500.0,0.00055616,120]
[319530148,1710827501761,-500.0,0.00055616,120]
[319530149,1710827501772,-500.0,0.00055616,120]
[319530150,1710827501781,-690.12,0.00055616,120]
[319530151,1710827501791,-2745.12,0.00055616,120]
[319530152,1710827501801,-1463.63,0.00055616,120]
[319530153,1710827501811,-1332.37,0.00055616,120]
[319530154,1710827501821,-513.49478816,0.00055616,120]
[319530155,1710827501830,-500.0,0.00055616,120]
[319530156,1710827501840,-500.0,0.00055616,120]
[319530157,1710827501850,-1293.97,0.00055616,120]
[319530158,1710827501860,-2204.05,0.00055616,120]
[319530159,1710827501869,-20464.22,0.00055616,120]
[319530160,1710827501879,-500.0,0.00055616,120]
[319530161,1710827501888,-500.0,0.00055616,120]
[319530162,1710827501898,-506.93835774,0.00055616,120]
[319530163,1710827501907,-788.79,0.00055616,120]
[319530164,1710827501917,-2173.0,0.00055616,120]
[319530165,1710827501927,-500.0,0.00055616,120]
[319530166,1710827501937,-500.0,0.00055616,120]
[319530167,1710827501946,-712.63,0.00055616,120]
[319530168,1710827501956,-500.0,0.00055616,120]
[319530169,1710827501966,-500.0,0.00055616,120]
[319530170,1710827501975,-500.0,0.00055616,120]
[319530171,1710827501988,-747.7,0.00055616,120]
[319530172,1710827501997,-1460.04,0.00055616,120]
[319530173,1710827502007,-983.3,0.00055616,120]
[319530174,1710827502017,-5519.3,0.00055616,120]
[319530175,1710827502026,-499.27549529,0.00055616,120]
[319530176,1710827502036,-1137.14,0.00055616,120]
[319530177,1710827502046,-500.0,0.00055616,120]
[319530178,1710827502055,-1542.16,0.00055616,120]
[319530179,1710827502065,-500.0,0.00055616,120]
[319530180,1710827502074,-2267.0,0.00055616,120]
[319530181,1710827502084,-500.0,0.00055616,120]
[319530182,1710827502093,-727.93,0.00055616,120]
[319530183,1710827502103,-750.31,0.00055616,120]
[319530184,1710827502113,-500.0,0.00055616,120]
[319530185,1710827502123,-500.0,0.00055616,120]
[319530186,1710827502133,-4080.42,0.00055616,120]
[319530187,1710827502142,-500.0,0.00055616,120]
[319530188,1710827502153,-1928.86,0.00055616,120]
[319530189,1710827502163,-2144.67,0.00055616,120]
[319530190,1710827502172,-1213.92,0.00055616,120]
[319530191,1710827502182,-612.48,0.00055616,120]
[319530192,1710827502192,-841.27,0.00055616,120]
[319530193,1710827502202,-1271.64,0.00055616,120]
[319530194,1710827502212,-1008.76,0.00055616,120]
[319530195,1710827502221,-529.15,0.00055616,120]
[319530196,1710827502233,-500.0,0.00055616,120]
[319530197,1710827502242,-641.45,0.00055616,120]
[319530198,1710827502251,-2173.5,0.00055616,120]
[319530199,1710827502260,-2497.12,0.00055616,120]
[319530200,1710827502269,-500.0,0.00055616,120]
[319530201,1710827502279,-3047.18,0.00055616,120]
[319530202,1710827502288,-1959.73,0.00055616,120]
[319530203,1710827502297,-7410.7,0.00055616,120]
[319530204,1710827502307,-612.7,0.00055616,120]
[319530205,1710827502316,-944.04,0.00055616,120]
[319530206,1710827502325,-500.0,0.00055616,120]
[319530207,1710827502334,-500.0,0.00055616,120]
[319530208,1710827502343,-722.09,0.00055616,120]
[319530209,1710827502352,-2628.6,0.00055616,120]
[319530210,1710827502361,-500.0,0.00055616,120]
[319530211,1710827502370,-1967.08,0.00055616,120]
[319530212,1710827502380,-2164.28,0.00055616,120]
[319530213,1710827502389,-500.0,0.00055616,120]
[319530214,1710827502399,-500.0,0.00055616,120]
[319530215,1710827502409,-4020.98,0.00055616,120]
[319530216,1710827502419,-647.76,0.00055616,120]
[319530217,1710827502428,-2736.28,0.00055616,120]
[319530218,1710827502438,-500.0,0.00055616,120]
[319530219,1710827502447,-500.0,0.00055616,120]
[319530220,1710827502457,-500.0,0.00055616,120]
[319530221,1710827502466,-2992.32,0.00055616,120]
[319530222,1710827502476,-631.63,0.00055616,120]
[319530223,1710827502487,-1056.07,0.00055616,120]
[319530224,1710827502497,-500.0,0.00055616,120]
[319530225,1710827502506,-500.0,0.00055616,120]
[319530226,1710827502517,-2979.51,0.00055616,120]
[319530227,1710827502526,-500.0,0.00055616,120]
[319530228,1710827502536,-519.8,0.00055616,120]
[319530229,1710827502546,-500.0,0.00055616,120]
[319530230,1710827502555,-767.17,0.00055616,120]
[319530231,1710827502565,-3047.94,0.00055616,120]
[319530232,1710827502574,-283.57535246,0.00055616,120]
[319530233,1710827502584,-503.57026578,0.00055616,120]
[319530234,1710827502593,-500.0,0.00055616,120]
[319530235,1710827502603,-624.69,0.00055616,120]
[319530236,1710827502613,-6905.17,0.00055616,120]
[319530237,1710827502622,-2551.19,0.00055616,120]
[319530238,1710827502631,-1096.17,0.00055616,120]
[319530239,1710827502640,-1285.54,0.00055616,120]
[319530240,1710827502649,-500.0,0.00055616,120]
[319530241,1710827502659,-500.0,0.00055616,120]
[319530242,1710827502669,-604.78,0.00055616,120]
[319530243,1710827502678,-500.0,0.00055616,120]
[319530244,1710827502688,-500.0,0.00055616,120]
[319530245,1710827502697,-1899.25,0.00055616,120]
[319530246,1710827502707,-500.0,0.00055616,120]
[319530247,1710827502717,-500.0,0.00055616,120]
[319530248,1710827502726,-1182.85,0.00055616,120]
[319530249,1710827502739,-1089.16,0.00055616,120]
[319530250,1710827502748,-2224.33,0.00055616,120]
[319530251,1710827502758,-500.0,0.00055616,120]
[319530252,1710827502769,-2004.49,0.00055616,120]
[319530253,1710827502779,-1747.58,0.00055616,120]
[319530254,1710827502789,-500.0,0.00055616,120]
[319530255,1710827502799,-1502.65,0.00055616,120]
[319530256,1710827502811,-500.0,0.00055616,120]
[319530257,1710827502820,-500.0,0.00055616,120]
[319530258,1710827502830,-2093.13,0.00055616,120]
[319530259,1710827502840,-500.0,0.00055616,120]
[319530260,1710827502850,-500.0,0.00055616,120]
[319530261,1710827502860,-500.0,0.00055616,120]
[319530262,1710827502869,-500.0,0.00055616,120]
[319530263,1710827502879,-506.47481359,0.00055616,120]
[319530264,1710827502889,-514.33,0.00055616,120]
[319530265,1710827502900,-500.0,0.00055616,120]
[319530266,1710827502911,-1662.12,0.00055616,120]
[319530267,1710827502922,-1393.08,0.00055616,120]
[319530268,1710827502932,-8736.8,0.00055616,120]
[319530269,1710827502943,-500.0,0.00055616,120]
[319530270,1710827502952,-500.0,0.00055616,120]
[319530271,1710827502962,-500.0,0.00055616,120]
[319530272,1710827502973,-658.54,0.00055616,120]
[319530273,1710827502985,-648.17,0.00055616,120]
[319530274,1710827502996,-500.0,0.00055616,120]
[319530275,1710827503006,-1089.65,0.00055616,120]
[319530276,1710827503016,-2720.05,0.00055616,120]
[319530277,1710827503026,-500.0,0.00055616,120]
[319530278,1710827503037,-500.0,0.00055616,120]
[319530279,1710827503047,-500.0,0.00055616,120]
[319530280,1710827503057,-1324.1,0.00055616,120]
[319530281,1710827503067,-604.81,0.00055616,120]
[319530282,1710827503076,-3530.08,0.00055616,120]
[319530283,1710827503086,-3588.24,0.00055616,120]
[319530284,1710827503096,-891.74,0.00055616,120]
[319530285,1710827503106,-500.0,0.00055616,120]
[319530286,1710827503115,-3450.35,0.00055616,120]
[319530287,1710827503125,-2217.17,0.00055616,120]
[319530288,1710827503135,-500.0,0.00055616,120]
[319530289,1710827503145,-6392.13,0.00055616,120]
[319530290,1710827503154,-818.66,0.00055616,120]
[319530291,1710827503164,-500.0,0.00055616,120]
[319530292,1710827503174,-712.28,0.00055616,120]
[319530293,1710827503183,-500.0,0.00055616,120]
[319530294,1710827503194,-509.79,0.00055616,120]
[319530295,1710827503205,-690.54,0.00055616,120]
[319530296,1710827503215,-3319.69,0.00055616,120]
[319530297,1710827503225,-500.0,0.00055616,120]
[319530298,1710827503239,-1812.93,0.00055616,120]
[319530299,1710827503248,-500.0,0.00055616,120]
[319530300,1710827503257,-500.0,0.00055616,120]
[319530301,1710827503266,-1962.31,0.00055616,120]
[319530302,1710827503276,-500.0,0.00055616,120]
[319530303,1710827503285,-500.0,0.00055616,120]
[319530304,1710827503296,-3097.92,0.00055616,120]
[319530305,1710827503307,-1154.31,0.00055616,120]
[319530306,1710827503317,-500.0,0.00055616,120]
[319530307,1710827503327,-685.32,0.00055616,120]
[319530308,1710827503337,-2420.04,0.00055616,120]
[319530309,1710827503347,-1532.56,0.00055616,120]
[319530310,1710827503356,-500.0,0.00055616,120]
[319530311,1710827503367,-501.45149978,0.00055616,120]
[319530312,1710827503377,-500.0,0.00055616,120]
[319530313,1710827503387,-1200.6,0.00055616,120]
[319530314,1710827503397,-500.0,0.00055616,120]
[319530315,1710827503408,-500.0,0.00055616,120]
[319530316,1710827503418,-1037.55,0.00055616,120]
[319530317,1710827503428,-500.0,0.00055616,120]
[319530318,1710827503438,-10993.53,0.00055616,120]
[319530319,1710827503449,-1040.71,0.00055616,120]
[319530320,1710827503460,-2840.09,0.00055616,120]
[319530321,1710827503471,-500.0,0.00055616,120]
[319530322,1710827503485,-500.0,0.00055616,120]
[319530323,1710827503496,-2830.68,0.00055616,120]
[319530324,1710827503505,-2822.24,0.00055616,120]
[319530325,1710827503516,-646.52,0.00055616,120]
[319530326,1710827503526,-2123.57,0.00055616,120]
[319530327,1710827503537,-1966.25,0.00055616,120]
[319530328,1710827503548,-500.0,0.00055616,120]
[319530329,1710827503559,-649.44,0.00055616,120]
[319530330,1710827503570,-500.0,0.00055616,120]
[319530331,1710827503580,-500.0,0.00055616,120]
[319530332,1710827503590,-1047.73,0.00055616,120]
[319530333,1710827503599,-1134.96,0.00055616,120]
[319530334,1710827503609,-500.0,0.00055616,120]
[319530335,1710827503619,-500.0,0.00055616,120]
[319530336,1710827503629,-500.0,0.00055616,120]
[319530337,1710827503639,-500.0,0.00055616,120]
[319530338,1710827503649,-3745.32,0.00055616,120]
[319530339,1710827503659,-500.0,0.00055616,120]
[319530340,1710827503668,-1379.72,0.00055616,120]
[319530341,1710827503678,-500.0,0.00055616,120]
[319530342,1710827503688,-500.0,0.00055616,120]
[319530343,1710827503699,-1229.29,0.00055616,120]
[319530344,1710827503710,-500.0,0.00055616,120]
[319530345,1710827503720,-743.99,0.00055616,120]
[319530346,1710827503731,-500.0,0.00055616,120]
[319530347,1710827503742,-628.13,0.00055616,120]
[319530348,1710827503752,-1973.36,0.00055616,120]
[319530349,1710827503761,-643.65,0.00055616,120]
[319530350,1710827503772,-850.45,0.00055616,120]
[319530351,1710827503782,-1436.94,0.00055616,120]
[319530352,1710827503792,-1623.87,0.00055616,120]
[319530353,1710827503803,-1386.7,0.00055616,120]
[319530354,1710827503814,-2995.94,0.00055616,120]
[319530355,1710827503823,-500.0,0.00055616,120]
[319530356,1710827503832,-1797.16,0.00055616,120]
[319530357,1710827503842,-1038.84,0.00055616,120]
[319530358,1710827503853,-653.57,0.00055616,120]
[319530359,1710827503863,-6815.41,0.00055616,120]
[319530360,1710827503873,-500.0,0.00055616,120]
[319530361,1710827503884,-500.0,0.00055616,120]
[319530362,1710827503894,-500.0,0.00055616,120]
[319530363,1710827503904,-844.11,0.00055616,120]
[319530364,1710827503914,-500.0,0.00055616,120]
[319530365,1710827503924,-500.0,0.00055616,120]
[319530366,1710827503934,-2518.17,0.00055616,21]
[319530367,1710827503944,-500.0,0.00055616,120]
[319530368,1710827503954,-500.0,0.00055616,120]
[319530369,1710827503965,-500.0,0.00055616,120]
[319530370,1710827503976,-500.0,0.00055616,120]
[319530371,1710827503988,-1249.47,0.00055616,120]
[319530372,1710827503998,-8128.88,0.00055616,120]
[319530373,1710827504008,-644.09,0.00055616,120]
[319530374,1710827504018,-2104.14,0.00055616,120]
[319530375,1710827504029,-500.0,0.00055616,120]
[319530376,1710827504038,-520.51,0.00055616,120]
[319530377,1710827504049,-500.0,0.00055616,120]
[319530378,1710827504059,-500.0,0.00055616,120]
[319530379,1710827504069,-500.0,0.00055616,120]
[319530380,1710827504078,-4987.59,0.00055616,120]
[319530381,1710827504089,-523.88,0.00055616,120]
[319530382,1710827504099,-1329.62,0.00055616,120]
[319530383,1710827504325,-500.0,0.00055616,120]
[319530384,1710827504335,-2650.41,0.00055616,120]
[319530385,1710827504345,-500.0,0.00055616,120]
[319530386,1710827504355,-8315.42,0.00055616,120]
[319530387,1710827504366,-2122.55,0.00055616,120]
[319530388,1710827504375,-8238.56,0.00055616,120]
[319530389,1710827504385,-882.83,0.00055616,120]
[319530390,1710827504395,-500.0,0.00055616,120]
[319530391,1710827504404,-500.0,0.00055616,120]
[319530392,1710827504415,-1643.06,0.00055616,120]
[319530393,1710827504425,-500.0,0.00055616,120]
[319530394,1710827504434,-500.0,0.00055616,120]
[319530395,1710827504444,-500.0,0.00055616,120]
[319530396,1710827504454,-870.48,0.00055616,120]
[319530397,1710827504464,-3569.24,0.00055616,120]
[319530398,1710827504474,-500.0,0.00055616,120]
[319530399,1710827504486,-500.0,0.00055616,120]
[319530400,1710827504495,-884.71,0.00055616,120]
[319530401,1710827504505,-500.0,0.00055616,120]
[319530402,1710827504515,-3795.75,0.00055616,120]
[319530403,1710827504525,-500.0,0.00055616,120]
[319530404,1710827504535,-500.0,0.00055616,120]
[319530405,1710827504545,-1136.5,0.00055616,120]
[319530406,1710827504554,-500.0,0.00055616,120]
[319530407,1710827504564,-1245.02,0.00055616,120]
[319530408,1710827504573,-1319.6,0.00055616,120]
[319530409,1710827504584,-4709.5,0.00055616,120]
[319530410,1710827504593,-500.0,0.00055616,120]
[319530411,1710827504604,-500.0,0.00055616,120]
[319530412,1710827504615,-1151.39,0.00055616,120]
[319530413,1710827504625,-2980.53,0.00055616,120]
[319530414,1710827504635,-518.02055046,0.00055616,120]
[319530415,1710827504645,-335.87923865,0.00055616,120]
[319530416,1710827504655,-500.0,0.00055616,120]
[319530417,1710827504665,-500.0,0.00055616,120]
[319530418,1710827504674,-500.0,0.00055616,120]
[319530419,1710827504684,-500.0,0.00055616,120]
[319530420,1710827504694,-1105.32,0.00055616,120]
[319530421,1710827504704,-8508.21,0.00055616,120]
[319530422,1710827504715,-1495.81,0.00055616,120]
[319530423,1710827504726,-643.14,0.00055616,120]
[319530424,1710827504737,-553.8,0.00055616,120]
[319530425,1710827504747,-500.0,0.00055616,120]
[319530426,1710827504758,-500.0,0.00055616,120]
[319530427,1710827504768,-426.1088003,0.00055616,120]
[319530428,1710827504779,-389.52094936,0.00055616,120]
[319530429,1710827504789,-500.0,0.00055616,120]